fUST/lending_fUST_20250520
["ID","MTS","AMOUNT","RATE_DAILY","PERIOD"]
[361724897,1747731033496,-1000.0,0.00016438,2]
[361724898,1747731033506,-400.0,0.00016438,2]
[361724899,1747731033516,-792.04,0.00016438,2]
[361724900,1747731033528,-402.98061718,0.00016438,2]
[361724901,1747731033539,-351.80077207,0.00016438,2]
[361724902,1747731033549,-450.0,0.00016438,2]
[361724903,1747731033559,-450.0,0.00016438,2]
[361724904,1747731033568,-428.19,0.00016438,2]
[361724905,1747731033578,-453.94893715,0.00016438,2]
[361724906,1747731033588,-450.0,0.00016438,2]
[361724907,1747731033597,-350.0,0.00016438,2]
[361724908,1747731033607,-430.0,0.00016438,2]
[361724909,1747731033617,-450.0,0.00016438,2]
[361724910,1747731033626,-430.0,0.00016438,2]
[361724911,1747731033636,-771.69,0.00016438,2]
[361724912,1747731033647,-430.0,0.00016438,2]
[361724913,1747731033657,-430.0,0.00016438,2]
[361724914,1747731033667,-450.0,0.00016438,2]
[361724915,1747731033676,-400.0,0.00016438,2]
[361724916,1747731033686,-450.0,0.00016438,2]
[361724917,1747731033697,-404.55646112,0.00016438,2]
[361724918,1747731033707,-430.0,0.00016438,2]
[361724919,1747731033717,-450.0,0.00016438,2]
[361724920,1747731033727,-500.0,0.00016438,2]
[361724921,1747731033737,-500.0,0.00016438,2]
[361724922,1747731033748,-500.0,0.00016438,2]
[361724923,1747731033758,-500.0,0.00016438,2]
[361724924,1747731033768,-500.0,0.00016438,2]
[361724925,1747731033778,-500.0,0.00016438,2]
[361724926,1747731033788,-500.0,0.00016438,2]
[361724927,1747731033797,-500.0,0.00016438,2]
[361724928,1747731033807,-500.0,0.00016438,2]
[361724929,1747731033817,-500.0,0.00016438,2]
[361724930,1747731033826,-430.0,0.00016438,2]
[361724931,1747731033836,-450.0,0.00016438,2]
[361724932,1747731033846,-403.39664684,0.00016438,2]
[361724933,1747731033856,-444.13,0.00016438,2]
[361724934,1747731033865,-430.0,0.00016438,2]
[361724935,1747731033875,-457.37422099,0.00016438,2]
[361724936,1747731033885,-430.0,0.00016438,2]
[361724937,1747731033896,-450.0,0.00016438,2]
[361724938,1747731033906,-402.10278998,0.00016438,2]
[361724939,1747731033916,-183.31829345,0.00016438,2]
[361724940,1747731033926,-446.59,0.00016438,2]
[361724941,1747731033936,-430.0,0.00016438,2]
[361724942,1747731033946,-403.47559268,0.00016438,2]
[361724943,1747731033955,-430.0,0.00016438,2]
[361724944,1747731033965,-430.0,0.00016438,2]
[361724945,1747731033976,-450.0,0.00016438,2]
[361724946,1747731033985,-430.0,0.00016438,2]
[361724947,1747731033995,-430.0,0.00016438,2]
[361724948,1747731034005,-430.0,0.00016438,2]
[361724949,1747731034014,-450.0,0.00016438,2]
[361724950,1747731034024,-500.0,0.00016438,2]
[361724951,1747731034034,-500.0,0.00016438,2]
[361724952,1747731034044,-450.0,0.00016438,2]
[361724953,1747731034053,-500.0,0.00016438,2]
[361724954,1747731034063,-430.0,0.00016438,2]
[361724955,1747731034073,-500.0,0.00016438,2]
[361724956,1747731034083,-500.0,0.00016438,2]
[361724957,1747731034093,-500.0,0.00016438,2]
[361724958,1747731034103,-430.0,0.00016438,2]
[361724959,1747731034113,-500.0,0.00016438,2]
[361724960,1747731034122,-500.0,0.00016438,2]
[361724961,1747731034132,-500.0,0.00016438,2]
[361724962,1747731034142,-500.0,0.00016438,2]
[361724963,1747731034152,-500.0,0.00016438,2]
[361724964,1747731034162,-430.0,0.00016438,2]
[361724965,1747731034172,-500.0,0.00016438,2]
[361724966,1747731034183,-500.0,0.00016438,2]
[361724967,1747731034193,-401.83134394,0.00016438,2]
[361724968,1747731034203,-336.26624562,0.00016438,2]
[361724969,1747731034213,-430.0,0.00016438,2]
[361724970,1747731034223,-430.0,0.00016438,2]
[361724971,1747731034233,-430.0,0.00016438,2]
[361724972,1747731034243,-402.86508409,0.00016438,2]
[361724973,1747731034252,-498.87,0.00016438,2]
[361724974,1747731034262,-430.0,0.00016438,2]
[361724975,1747731034271,-430.0,0.00016438,2]
[361724976,1747731034281,-403.61653793,0.00016438,2]
[361724977,1747731034292,-430.0,0.00016438,2]
[361724978,1747731034302,-450.0,0.00016438,2]
[361724979,1747731034312,-400.95120575,0.00016438,2]
[361724980,1747731034322,-526.81640074,0.00016438,2]
[361724981,1747731034336,-451.74011226,0.00016438,2]
[361724982,1747731034346,-151.0,0.00016438,2]
[361724983,1747731034357,-451.84824957,0.00016438,2]
[361724984,1747731034367,-151.0,0.00016438,2]
[361724985,1747731034377,-456.54368725,0.00016438,2]
[361724986,1747731034388,-401.75833078,0.00016438,2]
[361724987,1747731034398,-453.78701563,0.00016438,2]
[361724988,1747731034408,-450.0,0.00016438,2]
[361724989,1747731034419,-430.0,0.00016438,2]
[361724990,1747731034429,-567.87,0.00016438,2]
[361724991,1747731034440,-451.55639243,0.00016438,2]
[361724992,1747731034449,-450.0,0.00016438,2]
[361724993,1747731034459,-430.0,0.00016438,2]
[361724994,1747731034469,-453.90236767,0.00016438,2]
[361724995,1747731034479,-570.62,0.00016438,2]
[361724996,1747731034489,-430.0,0.00016438,2]
[361724997,1747731034499,-340.97071954,0.00016438,2]
[361724998,1747731034509,-500.0,0.00016438,2]
[361724999,1747731034519,-500.0,0.00016438,2]
[361725000,1747731034528,-531.82908056,0.00016438,2]
[361725001,1747731034538,-400.0,0.00016438,2]
[361725002,1747731034548,-452.29148004,0.00016438,2]
[361725003,1747731034558,-401.82318136,0.00016438,2]
[361725004,1747731034743,-430.0,0.00016438,2]
[361725005,1747731034753,-402.13101489,0.00016438,2]
[361725006,1747731034763,-403.43992503,0.00016438,2]
[361725007,1747731034772,-430.0,0.00016438,2]
[361725008,1747731034782,-430.0,0.00016438,2]
[361725009,1747731034792,-450.83141876,0.00016438,2]
[361725010,1747731034802,-632.4,0.00016438,2]
[361725011,1747731034812,-423.08,0.00016438,2]
[361725012,1747731034821,-430.0,0.00016438,2]
[361725013,1747731034831,-401.14185966,0.00016438,2]
[361725014,1747731034841,-463.11784884,0.00016438,2]
[361725015,1747731034851,-430.0,0.00016438,2]
[361725016,1747731034861,-401.6536058,0.00016438,2]
[361725017,1747731034870,-403.58921252,0.00016438,2]
[361725018,1747731034879,-509.54,0.00016438,2]
[361725019,1747731034890,-401.22049575,0.00016438,2]
[361725020,1747731034900,-430.0,0.00016438,2]
[361725021,1747731034910,-430.0,0.00016438,2]
[361725022,1747731034920,-430.0,0.00016438,2]
[361725023,1747731034930,-515.28181482,0.00016438,2]
[361725024,1747731034940,-401.6905893,0.00016438,2]
[361725025,1747731034950,-400.47651268,0.00016438,2]
[361725026,1747731034961,-400.0,0.00016438,2]
[361725027,1747731034971,-450.0,0.00016438,2]
[361725028,1747731034983,-430.0,0.00016438,2]
[361725029,1747731034994,-450.0,0.00016438,2]
[361725030,1747731035004,-430.0,0.00016438,2]
[361725031,1747731035016,-503.64422154,0.00016438,2]
[361725032,1747731035026,-430.0,0.00016438,2]
[361725033,1747731035037,-450.0,0.00016438,2]
[361725034,1747731035053,-402.61772283,0.00016438,2]
[361725035,1747731035071,-455.23724982,0.00016438,2]
[361725036,1747731035091,-430.0,0.00016438,2]
[361725037,1747731035102,-450.0,0.00016438,2]
[361725038,1747731035112,-430.0,0.00016438,2]
[361725039,1747731035121,-450.0,0.00016438,2]
[361725040,1747731035131,-456.49277029,0.00016438,2]
[361725041,1747731035141,-430.0,0.00016438,2]
[361725042,1747731035152,-282.97231538,0.00016438,2]
[361725043,1747731035162,-534.41,0.00016438,2]
[361725044,1747731035172,-400.0,0.00016438,2]
[361725045,1747731035183,-450.0,0.00016438,2]
[361725046,1747731035193,-402.48074581,0.00016438,2]
[361725047,1747731035203,-450.0,0.00016438,2]
[361725048,1747731035213,-400.0,0.00016438,2]
[361725049,1747731035222,-161.225624,0.00016438,2]
[361725050,1747731035232,-400.0,0.00016438,2]
[361725051,1747731035242,-161.225624,0.00016438,2]
[361725052,1747731035252,-401.47311142,0.00016438,2]
[361725053,1747731035262,-151.0,0.00016438,2]
[361725054,1747731035273,-151.0,0.00016438,2]
[361725055,1747731035283,-151.0,0.00016438,2]
[361725056,1747731035293,-450.0,0.00016438,2]
[361725057,1747731035303,-151.0,0.00016438,2]
[361725058,1747731035313,-151.0,0.00016438,2]
[361725059,1747731035324,-430.0,0.00016438,2]
[361725060,1747731035339,-151.0,0.00016438,2]
[361725061,1747731035351,-413.52744021,0.00016438,2]
[361725062,1747731035361,-406.5015007,0.00016438,2]
[361725063,1747731035371,-430.0,0.00016438,2]
[361725064,1747731035382,-430.0,0.00016438,2]
[361725065,1747731035392,-504.69,0.00016438,2]
[361725066,1747731035402,-430.0,0.00016438,2]
[361725067,1747731035413,-400.0,0.00016438,2]
[361725068,1747731035423,-401.40508588,0.00016438,2]
[361725069,1747731035433,-400.0,0.00016438,2]
[361725070,1747731035443,-301.02993744,0.00016438,2]
[361725071,1747731035453,-456.38910962,0.00016438,2]
[361725072,1747731035463,-430.0,0.00016438,2]
[361725073,1747731035473,-400.0,0.00016438,2]
[361725074,1747731035483,-151.0,0.00016438,2]
[361725075,1747731035493,-151.0,0.00016438,2]
[361725076,1747731035503,-406.42281525,0.00016438,2]
[361725077,1747731035513,-151.0,0.00016438,2]
[361725078,1747731035522,-430.0,0.00016438,2]
[361725079,1747731035532,-430.0,0.00016438,2]
[361725080,1747731035542,-151.0,0.00016438,2]
[361725081,1747731035551,-151.0,0.00016438,2]
[361725082,1747731035562,-151.0,0.00016438,2]
[361725083,1747731035572,-430.0,0.00016438,2]
[361725084,1747731035582,-430.0,0.00016438,2]
[361725085,1747731035591,-430.0,0.00016438,2]
[361725086,1747731035601,-430.0,0.00016438,2]
[361725087,1747731035611,-430.0,0.00016438,2]
[361725088,1747731035621,-402.14819521,0.00016438,2]
[361725089,1747731035631,-430.0,0.00016438,2]
[361725090,1747731035641,-430.0,0.00016438,2]
[361725091,1747731035651,-400.0,0.00016438,2]
[361725092,1747731035662,-430.0,0.00016438,2]
[361725093,1747731035672,-486.68,0.00016438,2]
[361725094,1747731035681,-430.0,0.00016438,2]
[361725095,1747731035691,-412.59597403,0.00016438,2]
[361725096,1747731035701,-503.38170601,0.00016438,2]
[361725097,1747731035710,-430.0,0.00016438,2]
[361725098,1747731035720,-400.0,0.00016438,2]
[361725099,1747731035730,-401.99410861,0.00016438,2]
[361725100,1747731035740,-503.18524931,0.00016438,2]
[361725101,1747731035749,-400.0,0.00016438,2]
[361725102,1747731035759,-459.82382833,0.00016438,2]
[361725103,1747731035769,-401.6291179,0.00016438,2]
[361725104,1747731035779,-400.0,0.00016438,2]
[361725105,1747731035790,-503.65612292,0.00016438,2]
[361725106,1747731035801,-414.55494655,0.00016438,2]
[361725107,1747731035810,-430.0,0.00016438,2]
[361725108,1747731035820,-405.8726505,0.00016438,2]
[361725109,1747731035829,-400.0,0.00016438,2]
[361725110,1747731035840,-430.0,0.00016438,2]
[361725111,1747731035850,-430.0,0.00016438,2]
[361725112,1747731035860,-430.0,0.00016438,2]
[361725113,1747731035869,-401.17198422,0.00016438,2]
[361725114,1747731035879,-157.50670584,0.00016438,2]
[361725115,1747731035889,-430.0,0.00016438,2]
[361725116,1747731035899,-430.0,0.00016438,2]
[361725117,1747731035909,-450.0,0.00016438,2]
[361725118,1747731035919,-430.0,0.00016438,2]
[361725119,1747731035929,-823.04,0.00016438,2]
[361725120,1747731035940,-400.0,0.00016438,2]
[361725121,1747731035950,-450.0,0.00016438,2]
[361725122,1747731035960,-400.0,0.00016438,2]
[361725123,1747731035971,-450.0,0.00016438,2]
[361725124,1747731035981,-430.0,0.00016438,2]
[361725125,1747731035991,-450.0,0.00016438,2]
[361725126,1747731036001,-400.0,0.00016438,2]
[361725127,1747731036012,-430.0,0.00016438,2]
[361725128,1747731036022,-430.0,0.00016438,2]
[361725129,1747731036032,-401.11114694,0.00016438,2]
[361725130,1747731036042,-400.0,0.00016438,2]
[361725131,1747731036052,-400.0,0.00016438,2]
[361725132,1747731036062,-400.0,0.00016438,2]
[361725133,1747731036072,-430.0,0.00016438,2]
[361725134,1747731036083,-430.0,0.00016438,2]
[361725135,1747731036094,-300.0,0.00016438,2]
[361725136,1747731036106,-450.0,0.00016438,2]
[361725137,1747731036119,-450.0,0.00016438,2]
[361725138,1747731036133,-456.66,0.00016438,2]
[361725139,1747731036143,-430.0,0.00016438,2]
[361725140,1747731036154,-266.438859,0.00016438,2]
[361725141,1747731036166,-450.0,0.00016438,2]
[361725142,1747731036176,-400.0,0.00016438,2]
[361725143,1747731036187,-430.0,0.00016438,2]
[361725144,1747731036197,-450.0,0.00016438,2]
[361725145,1747731036207,-430.0,0.00016438,2]
[361725146,1747731036217,-450.0,0.00016438,2]
[361725147,1747731036229,-151.0,0.00016438,2]
[361725148,1747731036238,-151.0,0.00016438,2]
[361725149,1747731036250,-430.0,0.00016438,2]
[361725150,1747731036261,-430.0,0.00016438,2]
[361725151,1747731036271,-400.0,0.00016438,2]
[361725152,1747731036282,-450.0,0.00016438,2]
[361725153,1747731036292,-400.0,0.00016438,2]
[361725154,1747731036303,-400.0,0.00016438,2]
[361725155,1747731036315,-430.0,0.00016438,2]
[361725156,1747731036325,-430.0,0.00016438,2]
[361725157,1747731036338,-400.0,0.00016438,2]
[361725158,1747731036348,-966.87,0.00016438,2]
[361725159,1747731036358,-400.0,0.00016438,2]
[361725160,1747731036368,-500.01100002,0.00016438,2]
[361725161,1747731036378,-249.15449928,0.00016438,2]
[361725162,1747731036388,-157.326013,0.00016438,2]
[361725163,1747731036398,-404.38317972,0.00016438,2]
[361725164,1747731036408,-460.44,0.00016438,2]
[361725165,1747731036419,-450.0,0.00016438,2]
[361725166,1747731036429,-450.0,0.00016438,2]
[361725167,1747731036439,-1701.32,0.00016438,2]
[361725168,1747731036449,-151.0,0.00016438,2]
[361725169,1747731036460,-151.0,0.00016438,2]
[361725170,1747731036471,-400.0,0.00016438,2]
[361725171,1747731036481,-430.0,0.00016438,2]
[361725172,1747731036490,-450.0,0.00016438,2]
[361725173,1747731036500,-400.0,0.00016438,2]
[361725174,1747731036510,-450.0,0.00016438,2]
[361725175,1747731036520,-430.0,0.00016438,2]
[361725176,1747731036531,-430.0,0.00016438,2]
[361725177,1747731036543,-450.0,0.00016438,2]
[361725178,1747731036553,-450.0,0.00016438,2]
[361725179,1747731036563,-430.0,0.00016438,2]
[361725180,1747731036572,-430.0,0.00016438,2]
[361725181,1747731036582,-453.33,0.00016438,2]
[361725182,1747731036592,-450.0,0.00016438,2]
[361725183,1747731036601,-430.0,0.00016438,2]
[361725184,1747731036611,-400.0,0.00016438,2]
[361725185,1747731036621,-459.15,0.00016438,2]
[361725186,1747731036631,-430.0,0.00016438,2]
[361725187,1747731036642,-238.6573862,0.00016438,2]
[361725188,1747731036652,-205.417408,0.00016438,2]
[361725189,1747731036664,-205.417408,0.00016438,2]
[361725190,1747731036674,-205.417408,0.00016438,2]
[361725191,1747731036684,-205.417408,0.00016438,2]
[361725192,1747731036694,-205.417408,0.00016438,2]
[361725193,1747731036704,-2370.11,0.00016438,2]
[361725194,1747731036714,-430.0,0.00016438,2]
[361725195,1747731036724,-430.0,0.00016438,2]
[361725196,1747731036734,-430.0,0.00016438,2]
[361725197,1747731036743,-450.0,0.00016438,2]
[361725198,1747731036753,-205.417408,0.00016438,2]
[361725199,1747731036763,-205.417408,0.00016438,2]
[361725200,1747731036773,-205.417408,0.00016438,2]
[361725201,1747731036783,-430.0,0.00016438,2]
[361725202,1747731036795,-205.417408,0.00016438,2]
[361725203,1747731036805,-205.417408,0.00016438,2]
[361725204,1747731036815,-430.0,0.00016438,2]
[361725205,1747731036825,-400.0,0.00016438,2]
[361725206,1747731036835,-450.0,0.00016438,2]
[361725207,1747731036845,-430.0,0.00016438,2]
[361725208,1747731036855,-450.0,0.00016438,2]
[361725209,1747731036865,-430.0,0.00016438,2]
[361725210,1747731036875,-625.7,0.00016438,2]
[361725211,1747731036885,-400.0,0.00016438,2]
[361725212,1747731036895,-400.0,0.00016438,2]
[361725213,1747731036905,-450.0,0.00016438,2]
[361725214,1747731036915,-3187.58,0.00016438,2]
[361725215,1747731036924,-1067.96,0.00016438,2]
[361725216,1747731036934,-450.0,0.00016438,2]
[361725217,1747731036944,-450.0,0.00016438,2]
[361725218,1747731036954,-430.0,0.00016438,2]
[361725219,1747731036964,-430.0,0.00016438,2]
[361725220,1747731036974,-1170.88,0.00016438,2]
[361725221,1747731036984,-430.0,0.00016438,2]
[361725222,1747731036994,-450.0,0.00016438,2]
[361725223,1747731037003,-336.05487387,0.00016438,2]
[361725224,1747731037013,-430.0,0.00016438,2]
[361725225,1747731037023,-400.0,0.00016438,2]
[361725226,1747731037032,-400.0,0.00016438,2]
[361725227,1747731037042,-151.0,0.00016438,2]
[361725228,1747731037052,-156.735605,0.00016438,2]
[361725229,1747731037061,-430.0,0.00016438,2]
[361725230,1747731037070,-402.13547361,0.00016438,2]
[361725231,1747731037079,-450.0,0.00016438,2]
[361725232,1747731037089,-1394.59,0.00016438,2]
[361725233,1747731037098,-400.0,0.00016438,2]
[361725234,1747731037108,-430.0,0.00016438,2]
[361725235,1747731037117,-450.0,0.00016438,2]
[361725236,1747731037126,-430.0,0.00016438,2]
[361725237,1747731037136,-400.0,0.00016438,2]
[361725238,1747731037145,-430.0,0.00016438,2]
[361725239,1747731037155,-430.0,0.00016438,2]
[361725240,1747731037166,-521.49,0.00016438,2]
[361725241,1747731037176,-430.0,0.00016438,2]
[361725242,1747731037185,-151.0,0.00016438,2]
[361725243,1747731037195,-151.0,0.00016438,2]
[361725244,1747731037204,-714.5,0.00016438,2]
[361725246,1747731037214,-151.0,0.00016438,2]
[361725247,1747731037223,-151.0,0.00016438,2]
[361725248,1747731037233,-151.0,0.00016438,2]
[361725249,1747731037242,-151.0,0.00016438,2]
[361725250,1747731037251,-400.0,0.00016438,2]
[361725251,1747731037261,-400.0,0.00016438,2]
[361725253,1747731037308,-430.0,0.00016438,2]
[361725254,1747731037319,-430.0,0.00016438,2]
[361725255,1747731037332,-450.0,0.00016438,2]
[361725256,1747731037346,-450.0,0.00016438,2]
[361725258,1747731037357,-450.0,0.00016438,2]
[361725259,1747731037370,-430.0,0.00016438,2]
[361725260,1747731037380,-400.0,0.00016438,2]
[361725262,1747731037389,-1023.23,0.00016438,2]
[361725264,1747731037399,-430.0,0.00016438,2]
[361725266,1747731037410,-430.0,0.00016438,2]
[361725267,1747731037420,-400.0,0.00016438,2]
[361725268,1747731037430,-430.0,0.00016438,2]
[361725270,1747731037441,-400.0,0.00016438,2]
[361725271,1747731037451,-845.18,0.00016438,2]
[361725272,1747731037460,-430.0,0.00016438,2]
[361725273,1747731037471,-430.0,0.00016438,2]
[361725274,1747731037481,-400.0,0.00016438,2]
[361725275,1747731037491,-430.0,0.00016438,2]
[361725276,1747731037503,-400.0,0.00016438,2]
[361725277,1747731037514,-430.0,0.00016438,2]
[361725278,1747731037524,-400.0,0.00016438,2]
[361725279,1747731037536,-605.02,0.00016438,2]
[361725281,1747731037545,-430.0,0.00016438,2]
[361725282,1747731037555,-400.0,0.00016438,2]
[361725284,1747731037564,-450.0,0.00016438,2]
[361725285,1747731037578,-404.06598332,0.00016438,2]
[361725286,1747731037587,-430.0,0.00016438,2]
[361725288,1747731037597,-430.0,0.00016438,2]
[361725289,1747731037606,-430.0,0.00016438,2]
[361725291,1747731037616,-430.0,0.00016438,2]
[361725293,1747731037625,-430.0,0.00016438,2]
[361725295,1747731037635,-524.08060398,0.00016438,2]
[361725296,1747731037644,-430.0,0.00016438,2]
[361725297,1747731037654,-430.0,0.00016438,2]
[361725299,1747731037663,-450.0,0.00016438,2]
[361725300,1747731037673,-400.0,0.00016438,2]
[361725301,1747731037682,-403.6239542,0.00016438,2]
[361725302,1747731037692,-430.0,0.00016438,2]
[361725303,1747731037701,-450.0,0.00016438,2]
[361725304,1747731037710,-430.0,0.00016438,2]
[361725305,1747731037721,-1425.83,0.00016438,2]
[361725306,1747731037731,-430.0,0.00016438,2]
[361725307,1747731037740,-649.17,0.00016438,2]
[361725308,1747731037750,-450.0,0.00016438,2]
[361725309,1747731037759,-300.0,0.00016438,2]
[361725310,1747731037769,-414.05136376,0.00016438,2]
[361725311,1747731037778,-400.0,0.00016438,2]
[361725312,1747731037788,-430.0,0.00016438,2]
[361725314,1747731037798,-430.0,0.00016438,2]
[361725316,1747731037807,-430.0,0.00016438,2]
[361725317,1747731037816,-400.0,0.00016438,2]
[361725318,1747731037826,-400.0,0.00016438,2]
[361725319,1747731037835,-430.0,0.00016438,2]
[361725320,1747731037845,-683.89,0.00016438,2]
[361725321,1747731037854,-845.85,0.00016438,2]
[361725322,1747731037864,-400.0,0.00016438,2]
[361725323,1747731037874,-405.24714699,0.00016438,2]
[361725324,1747731037884,-151.0,0.00016438,2]
[361725325,1747731037893,-151.0,0.00016438,2]
[361725326,1747731037903,-151.0,0.00016438,2]
[361725327,1747731037912,-151.0,0.00016438,2]
[361725328,1747731037922,-151.0,0.00016438,2]
[361725329,1747731037931,-524.36,0.00016438,2]
[361725330,1747731037941,-450.0,0.00016438,2]
[361725331,1747731037951,-400.0,0.00016438,2]
[361725332,1747731037960,-1834.61,0.00016438,2]
[361725333,1747731037969,-832.7,0.00016438,2]
[361725334,1747731037979,-400.0,0.00016438,2]
[361725335,1747731037988,-450.0,0.00016438,2]
[361725336,1747731037998,-400.0,0.00016438,2]
[361725337,1747731038007,-4757.36,0.00016438,2]
[361725338,1747731038016,-430.0,0.00016438,2]
[361725339,1747731038025,-1280.71,0.00016438,2]
[361725340,1747731038034,-1301.44,0.00016438,2]
[361725341,1747731038044,-430.0,0.00016438,2]
[361725342,1747731038054,-430.0,0.00016438,2]
[361725343,1747731038063,-1033.93,0.00016438,2]
[361725344,1747731038073,-430.0,0.00016438,2]
[361725345,1747731038082,-574.71,0.00016438,2]
[361725346,1747731038092,-511.08,0.00016438,2]
[361725347,1747731038101,-400.0,0.00016438,2]
[361725348,1747731038110,-405.81933136,0.00016438,2]
[361725349,1747731038119,-400.0,0.00016438,2]
[361725350,1747731038129,-450.0,0.00016438,2]
[361725351,1747731038138,-400.0,0.00016438,2]
[361725352,1747731038148,-430.0,0.00016438,2]
[361725353,1747731038157,-430.0,0.00016438,2]
[361725354,1747731038167,-430.0,0.00016438,2]
[361725355,1747731038176,-400.0,0.00016438,2]
[361725356,1747731038185,-430.0,0.00016438,2]
[361725357,1747731038195,-400.0,0.00016438,2]
[361725358,1747731038204,-400.0,0.00016438,2]
[361725359,1747731038213,-151.0,0.00016438,2]
[361725360,1747731038223,-493.54,0.00016438,2]
[361725361,1747731038232,-151.0,0.00016438,2]
[361725362,1747731038241,-151.0,0.00016438,2]
[361725363,1747731038250,-151.0,0.00016438,2]
[361725364,1747731038260,-151.0,0.00016438,2]
[361725365,1747731038269,-152.84437,0.00016438,2]
[361725366,1747731038279,-582.09,0.00016438,2]
[361725367,1747731038288,-430.0,0.00016438,2]
[361725368,1747731038298,-430.0,0.00016438,2]
[361725369,1747731038308,-2227.23,0.00016438,2]
[361725370,1747731038318,-400.0,0.00016438,2]
[361725371,1747731038327,-865.79,0.00016438,2]
[361725372,1747731038340,-424.49286855,0.00016438,2]
[361725373,1747731038350,-400.0,0.00016438,2]
[361725374,1747731038359,-430.0,0.00016438,2]
[361725375,1747731038368,-430.0,0.00016438,2]
[361725376,1747731038379,-400.0,0.00016438,2]
[361725377,1747731038388,-472.80336111,0.00016438,2]
[361725378,1747731038398,-482.03,0.00016438,2]
[361725379,1747731038408,-500.0,0.00016438,2]
[361725380,1747731038419,-457.71186376,0.00016438,2]
[361725381,1747731038429,-827.76,0.00016438,2]
[361725382,1747731038439,-813.4,0.00016438,2]
[361725383,1747731038449,-430.0,0.00016438,2]
[361725384,1747731038458,-430.0,0.00016438,2]
[361725385,1747731038468,-430.0,0.00016438,2]
[361725386,1747731038478,-400.0,0.00016438,2]
[361725387,1747731038487,-430.0,0.00016438,2]
[361725388,1747731038498,-400.0,0.00016438,2]
[361725389,1747731038509,-430.0,0.00016438,2]
[361725390,1747731038518,-400.0,0.00016438,2]
[361725391,1747731038527,-1058.24,0.00016438,2]
[361725392,1747731038537,-812.09,0.00016438,2]
[361725393,1747731038548,-430.0,0.00016438,2]
[361725394,1747731038557,-490.29,0.00016438,2]
[361725395,1747731038567,-400.0,0.00016438,2]
[361725396,1747731038577,-761.83,0.00016438,2]
[361725397,1747731038587,-400.0,0.00016438,2]
[361725398,1747731038598,-220.0,0.00016438,2]
[361725399,1747731038608,-450.0,0.00016438,2]
[361725400,1747731038618,-400.0,0.00016438,2]
[361725401,1747731038627,-430.0,0.00016438,2]
[361725402,1747731038637,-400.0,0.00016438,2]
[361725403,1747731038647,-401.32849945,0.00016438,2]
[361725404,1747731038658,-400.0,0.00016438,2]
[361725405,1747731038668,-405.50696264,0.00016438,2]
[361725406,1747731038678,-400.26630638,0.00016438,2]
[361725407,1747731038689,-430.0,0.00016438,2]
[361725408,1747731038699,-450.0,0.00016438,2]
[361725409,1747731038710,-477.65,0.00016438,2]
[361725410,1747731038720,-430.0,0.00016438,2]
[361725411,1747731038730,-1269.65,0.00016438,2]
[361725412,1747731038740,-400.0,0.00016438,2]